Workbook

Sheet RunningBudget
A1: Month to Month Budget/Goal Tracker
A2: Set long term goals and view your progress
A4: Car in 12 months
F6: Total Progress on Goal
B7: 9000 | E7: 1.028222222
B8: 1
A11: Summary:
A13: Date | B13: Monthly Expense | C13: Monthly Surplus | D13: Running Total
A14: 2017-07-01 | B14: 375 | C14: 2125 | D14: 9254
A15: 2017-06-01 | B15: 2839.7 | C15: -209.7 | D15: 7129
A16: 2017-05-01 | B16: 806.27 | C16: 1693.73 | D16: 7339
A17: 2017-04-01 | B17: 726 | C17: 1904 | D17: 5645
A18: 2017-03-01 | B18: 782.3 | C18: 2217.7 | D18: 3741
A19: 2017-02-01 | B19: 2707.7 | C19: -77.7 | D19: 1523
A20: 2017-01-01 | B20: 898.62 | C20: 1601.38 | D20: 1601

Sheet July 2017
A1: July 2017
AA2: Jan | AB2: 1 | AC2: Rent
A3: Monthly Expected Income | B3: 2500 | AA3: Feb | AB3: 2 | AC3: Utilities
A4: Additional Income | B4: 0 | AA4: Mar | AB4: 3 | AC4: Food
A5: Total Income | B5: 2500 | AA5: Apr | AB5: 4 | AC5: Insurance
AA6: May | AB6: 5 | AC6: Phone
A7: Transaction Number | B7: Date | C7: Amount | D7: Category | AA7: Jun | AB7: 6 | AC7: Savings
A8: 1 | B8: 2016-07-02 | C8: 75 | D8: Utilities | AA8: Jul | AB8: 7 | AC8: Medical
A9: 2 | B9: 2016-07-02 | C9: 300 | D9: Rent | AA9: Aug | AB9: 8 | AC9: Other bills
AA10: Sep | AB10: 9 | AC10: Fun
AA11: Oct | AB11: 10 | AC11: Home Improvement
AA12: Nov | AB12: 11 | AC12: Clothing
F13: Expense Totals: | AA13: Dec | AB13: 12
F14: Rent | G14: 300 | AB14: 13
F15: Utilities | G15: 75 | AB15: 14
F16: Food | AB16: 15
F17: Insurance | AB17: 16
F18: Phone | AB18: 17
F19: Gas | AB19: 18
F20: Medical | AB20: 19
F21: Other Bills | AB21: 20
F22: Fun | AB22: 21
F23: Home Improvement | AB23: 22
F24: Clothing | AB24: 23
AB25: 24
G26: =A1 -> July 2017 | AB26: 25
F27: Total Expense: | G27: =SUM(G14:G24) -> 375 | AB27: 26
F28: Surplus: | G28: =B5-G27 -> 2125 | AB28: 27
AB29: 28
AB30: 29
AB31: 30
AB32: 31

Sheet June 2017
A1: June 2017
AA2: Jan | AB2: 1 | AC2: Rent
A3: Monthly Expected Income | B3: 2500 | AA3: Feb | AB3: 2 | AC3: Utilities
A4: Additional Income | B4: 130 | AA4: Mar | AB4: 3 | AC4: Food
A5: Total Income | B5: 2630 | AA5: Apr | AB5: 4 | AC5: Insurance
AA6: May | AB6: 5 | AC6: Phone
A7: Transaction Number | B7: Date | C7: Amount | D7: Category | AA7: Jun | AB7: 6 | AC7: Savings
A8: 1 | B8: 2016-06-01 | C8: 360 | D8: Rent | AA8: Jul | AB8: 7 | AC8: Medical
A9: 2 | B9: 2016-06-01 | C9: 38.7 | D9: Utilities | AA9: Aug | AB9: 8 | AC9: Other bills
A10: 3 | B10: 2016-06-01 | C10: 36 | D10: Phone | AA10: Sep | AB10: 9 | AC10: Fun
A11: 4 | B11: 2016-06-01 | C11: 38 | D11: Food | AA11: Oct | AB11: 10 | AC11: Home Improvement
A12: 5 | B12: 2016-06-01 | C12: 37 | D12: Gas | AA12: Nov | AB12: 11 | AC12: Clothing
A13: 6 | B13: 2016-06-01 | C13: 120 | D13: Medical | F13: Expense Totals: | AA13: Dec | AB13: 12
A14: 7 | B14: 2016-06-01 | C14: 200 | D14: Other Bills | F14: Rent | G14: 360 | AB14: 13
A15: 8 | B15: 2016-06-09 | C15: 42 | D15: Home Improvement | F15: Utilities | G15: 38.7 | AB15: 14
A16: 9 | B16: 2016-06-09 | C16: 29 | D16: Clothing | F16: Food | G16: 130 | AB16: 15
A17: 10 | B17: 2016-06-10 | C17: 75 | D17: Clothing | F17: Insurance | AB17: 16
A18: 11 | B18: 2016-06-11 | C18: 46 | D18: Food | F18: Phone | G18: 36 | AB18: 17
A19: 12 | B19: 2016-06-11 | C19: 37 | D19: Gas | F19: Gas | G19: 109 | AB19: 18
A20: 13 | B20: 2016-06-25 | C20: 46 | D20: Food | F20: Medical | G20: 1820 | AB20: 19
A21: 14 | B21: 2016-06-25 | C21: 35 | D21: Gas | F21: Other Bills | G21: 200 | AB21: 20
A22: 15 | B22: 1931-06-01 | C22: 1700 | D22: Medical | F22: Fun | AB22: 21
F23: Home Improvement | G23: 42 | AB23: 22
F24: Clothing | G24: 104 | AB24: 23
AB25: 24
G26: =A1 -> June 2017 | AB26: 25
F27: Total Expense: | G27: =SUM(G14:G24) -> 2839.7 | AB27: 26
F28: Surplus: | G28: =B5-G27 -> -209.7 | AB28: 27
AB29: 28
AB30: 29
AB31: 30
AB32: 31

Sheet May 2017
A1: May 2017
AA2: Jan | AB2: 1 | AC2: Rent
A3: Monthly Expected Income | B3: 2500 | AA3: Feb | AB3: 2 | AC3: Utilities
A4: Additional Income | B4: 0 | AA4: Mar | AB4: 3 | AC4: Food
A5: Total Income | B5: 2500 | AA5: Apr | AB5: 4 | AC5: Insurance
AA6: May | AB6: 5 | AC6: Phone
A7: Transaction Number | B7: Date | C7: Amount | D7: Category | AA7: Jun | AB7: 6 | AC7: Savings
A8: 1 | B8: 2016-05-01 | C8: 360 | D8: Rent | AA8: Jul | AB8: 7 | AC8: Medical
A9: 2 | B9: 2016-05-01 | C9: 38 | D9: Utilities | AA9: Aug | AB9: 8 | AC9: Other bills
A10: 3 | B10: 2016-05-01 | C10: 60 | D10: Insurance | AA10: Sep | AB10: 9 | AC10: Fun
A11: 4 | B11: 2016-05-01 | C11: 36 | D11: Food | AA11: Oct | AB11: 10 | AC11: Home Improvement
A12: 5 | B12: 2016-05-01 | C12: 36 | D12: Phone | AA12: Nov | AB12: 11 | AC12: Clothing
A13: 6 | B13: 2016-05-01 | C13: 29.73 | D13: Fun | F13: Expense Totals: | AA13: Dec | AB13: 12
A14: 7 | B14: 2016-05-10 | C14: 42.5 | D14: Food | F14: Rent | G14: 360 | AB14: 13
A15: 8 | B15: 2016-05-10 | C15: 35.14 | D15: Gas | F15: Utilities | G15: 38 | AB15: 14
A16: 9 | B16: 2016-05-17 | C16: 42.8 | D16: Food | F16: Food | G16: 160.1 | AB16: 15
A17: 10 | B17: 2016-05-17 | C17: 49.6 | D17: Gas | F17: Insurance | G17: 60 | AB17: 16
A18: 11 | B18: 2016-05-23 | C18: 37.7 | D18: Gas | F18: Phone | G18: 36 | AB18: 17
A19: 12 | B19: 2016-05-23 | C19: 38.8 | D19: Food | F19: Gas | G19: 122.44 | AB19: 18
F20: Medical | AB20: 19
F21: Other Bills | AB21: 20
F22: Fun | G22: 29.73 | AB22: 21
F23: Home Improvement | AB23: 22
F24: Clothing | AB24: 23
AB25: 24
G26: =A1 -> May 2017 | AB26: 25
F27: Total Expense: | G27: =SUM(G14:G24) -> 806.27 | AB27: 26
F28: Surplus: | G28: =B5-G27 -> 1693.73 | AB28: 27
AB29: 28
AB30: 29
AB31: 30
AB32: 31

Sheet April 2017
A1: April 2017
AA2: Jan | AB2: 1 | AC2: Rent
A3: Monthly Expected Income | B3: 2500 | AA3: Feb | AB3: 2 | AC3: Utilities
A4: Additional Income | B4: 130 | AA4: Mar | AB4: 3 | AC4: Food
A5: Total Income | B5: 2630 | AA5: Apr | AB5: 4 | AC5: Insurance
AA6: May | AB6: 5 | AC6: Phone
A7: Transaction Number | B7: Date | C7: Amount | D7: Category | AA7: Jun | AB7: 6 | AC7: Savings
A8: 1 | B8: 2016-04-01 | C8: 360 | D8: Rent | AA8: Jul | AB8: 7 | AC8: Medical
A9: 2 | B9: 2016-04-01 | C9: 38 | D9: Utilities | AA9: Aug | AB9: 8 | AC9: Other bills
A10: 3 | B10: 2016-04-01 | C10: 28 | D10: Insurance | AA10: Sep | AB10: 9 | AC10: Fun
A11: 4 | B11: 2016-04-01 | C11: 35 | D11: Gas | AA11: Oct | AB11: 10 | AC11: Home Improvement
A12: 5 | B12: 2016-04-07 | C12: 42 | D12: Other Bills | AA12: Nov | AB12: 11 | AC12: Clothing
A13: 6 | B13: 2016-04-07 | C13: 48 | D13: Food | F13: Expense Totals: | AA13: Dec | AB13: 12
A14: 7 | B14: 2016-04-14 | C14: 35 | D14: Gas | F14: Rent | G14: 360 | AB14: 13
A15: 8 | B15: 2016-04-14 | C15: 35 | D15: Phone | F15: Utilities | G15: 38 | AB15: 14
A16: 9 | B16: 2016-04-17 | C16: 35 | D16: Food | F16: Food | G16: 118 | AB16: 15
A17: 10 | B17: 2016-04-29 | C17: 35 | D17: Food | F17: Insurance | G17: 28 | AB17: 16
A18: 11 | B18: 2016-04-29 | C18: 35 | D18: Gas | F18: Phone | G18: 35 | AB18: 17
F19: Gas | G19: 105 | AB19: 18
F20: Medical | AB20: 19
F21: Other Bills | G21: 42 | AB21: 20
F22: Fun | AB22: 21
F23: Home Improvement | AB23: 22
F24: Clothing | AB24: 23
AB25: 24
G26: =A1 -> April 2017 | AB26: 25
F27: Total Expense: | G27: =SUM(G14:G24) -> 726 | AB27: 26
F28: Surplus: | G28: =B5-G27 -> 1904 | AB28: 27
AB29: 28
AB30: 29
AB31: 30
AB32: 31

Sheet March 2017
A1: March 2017
AA2: Jan | AB2: 1 | AC2: Rent
A3: Monthly Expected Income | B3: 3000 | AA3: Feb | AB3: 2 | AC3: Utilities
A4: Additional Income | B4: 0 | AA4: Mar | AB4: 3 | AC4: Food
A5: Total Income | B5: 3000 | AA5: Apr | AB5: 4 | AC5: Insurance
AA6: May | AB6: 5 | AC6: Phone
A7: Transaction Number | B7: Date | C7: Amount | D7: Category | AA7: Jun | AB7: 6 | AC7: Savings
A8: 1 | B8: 2016-03-01 | C8: 360 | D8: Rent | AA8: Jul | AB8: 7 | AC8: Medical
A9: 2 | B9: 2016-03-01 | C9: 45 | D9: Utilities | AA9: Aug | AB9: 8 | AC9: Other bills
A10: 3 | B10: 2016-03-01 | C10: 60 | D10: Insurance | AA10: Sep | AB10: 9 | AC10: Fun
A11: 4 | B11: 2016-03-01 | C11: 35 | D11: Phone | AA11: Oct | AB11: 10 | AC11: Home Improvement
A12: 5 | B12: 2016-03-01 | C12: 15 | D12: Fun | AA12: Nov | AB12: 11 | AC12: Clothing
A13: 6 | B13: 2016-03-08 | C13: 40 | D13: Food | F13: Expense Totals: | AA13: Dec | AB13: 12
A14: 7 | B14: 2016-03-08 | C14: 52.3 | D14: Gas | F14: Rent | G14: 360 | AB14: 13
A15: 8 | B15: 2016-03-14 | C15: 28 | D15: Food | F15: Utilities | G15: 45 | AB15: 14
A16: 9 | B16: 2016-03-21 | C16: 35 | D16: Food | F16: Food | G16: 139 | AB16: 15
A17: 10 | B17: 2016-03-21 | C17: 49 | D17: Gas | F17: Insurance | G17: 60 | AB17: 16
A18: 11 | B18: 2016-03-28 | C18: 27 | D18: Gas | F18: Phone | G18: 35 | AB18: 17
A19: 12 | B19: 2016-03-28 | C19: 36 | D19: Food | F19: Gas | G19: 128.3 | AB19: 18
F20: Medical | AB20: 19
F21: Other Bills | AB21: 20
F22: Fun | G22: 15 | AB22: 21
F23: Home Improvement | AB23: 22
F24: Clothing | AB24: 23
AB25: 24
G26: =A1 -> March 2017 | AB26: 25
F27: Total Expense: | G27: =SUM(G14:G24) -> 782.3 | AB27: 26
F28: Surplus: | G28: =B5-G27 -> 2217.7 | AB28: 27
AB29: 28
AB30: 29
AB31: 30
AB32: 31

Sheet Feb 2017
A1: Feb 2017
AA2: Jan | AB2: 1 | AC2: Rent
A3: Monthly Expected Income | B3: 2500 | AA3: Feb | AB3: 2 | AC3: Utilities
A4: Additional Income | B4: 130 | AA4: Mar | AB4: 3 | AC4: Food
A5: Total Income | B5: 2630 | AA5: Apr | AB5: 4 | AC5: Insurance
AA6: May | AB6: 5 | AC6: Phone
A7: Transaction Number | B7: Date | C7: Amount | D7: Category | AA7: Jun | AB7: 6 | AC7: Savings
A8: 1 | B8: 2016-02-01 | C8: 360 | D8: Rent | AA8: Jul | AB8: 7 | AC8: Medical
A9: 2 | B9: 2016-02-01 | C9: 38.7 | D9: Utilities | AA9: Aug | AB9: 8 | AC9: Other bills
A10: 3 | B10: 2016-02-01 | C10: 200 | D10: Insurance | AA10: Sep | AB10: 9 | AC10: Fun
A11: 4 | B11: 2016-02-02 | C11: 50 | D11: Medical | AA11: Oct | AB11: 10 | AC11: Home Improvement
A12: 5 | B12: 2016-02-02 | C12: 25 | D12: Home Improvement | AA12: Nov | AB12: 11 | AC12: Clothing
A13: 6 | B13: 2016-02-07 | C13: 50 | D13: Food | F13: Expense Totals: | AA13: Dec | AB13: 12
A14: 7 | B14: 2016-02-07 | C14: 45 | D14: Gas | F14: Rent | G14: 360 | AB14: 13
A15: 8 | B15: 2016-02-07 | C15: 29 | D15: Clothing | F15: Utilities | G15: 38.7 | AB15: 14
A16: 9 | B16: 2016-02-15 | C16: 35 | D16: Fun | F16: Food | G16: 125 | AB16: 15
A17: 10 | B17: 2016-02-18 | C17: 40 | D17: Gas | F17: Insurance | G17: 200 | AB17: 16
A18: 11 | B18: 2016-02-18 | C18: 45 | D18: Food | F18: Phone | G18: 30 | AB18: 17
A19: 12 | B19: 2016-02-27 | C19: 30 | D19: Food | F19: Gas | G19: 115 | AB19: 18
A20: 13 | B20: 2016-02-27 | C20: 30 | D20: Gas | F20: Medical | G20: 1750 | AB20: 19
A21: 14 | B21: 2016-02-27 | C21: 30 | D21: Phone | F21: Other Bills | AB21: 20
A22: 15 | B22: 2016-02-28 | C22: 1700 | D22: Medical | F22: Fun | G22: 35 | AB22: 21
F23: Home Improvement | G23: 25 | AB23: 22
F24: Clothing | G24: 29 | AB24: 23
AB25: 24
G26: =A1 -> Feb 2017 | AB26: 25
F27: Total Expense: | G27: =SUM(G14:G24) -> 2707.7 | AB27: 26
F28: Surplus: | G28: =B5-G27 -> -77.7 | AB28: 27
AB29: 28
AB30: 29
AB31: 30
AB32: 31

Sheet Jan 2017
A1: Jan 2017
AA2: Jan | AB2: 1 | AC2: Rent
A3: Monthly Expected Income | B3: 2500 | AA3: Feb | AB3: 2 | AC3: Utilities
A4: Additional Income | B4: 0 | AA4: Mar | AB4: 3 | AC4: Food
A5: Total Income | B5: 2500 | AA5: Apr | AB5: 4 | AC5: Insurance
AA6: May | AB6: 5 | AC6: Phone
A7: Transaction Number | B7: Date | C7: Amount | D7: Category | AA7: Jun | AB7: 6 | AC7: Savings
A8: 1 | B8: 2016-01-01 | C8: 36.5 | D8: Food | AA8: Jul | AB8: 7 | AC8: Medical
A9: 2 | B9: 2016-01-01 | C9: 20 | D9: Fun | AA9: Aug | AB9: 8 | AC9: Other bills
A10: 3 | B10: 2016-01-01 | C10: 350 | D10: Rent | AA10: Sep | AB10: 9 | AC10: Fun
A11: 4 | B11: 2016-01-02 | C11: 55.6 | D11: Gas | AA11: Oct | AB11: 10 | AC11: Home Improvement
A12: 5 | B12: 2016-01-08 | C12: 50 | D12: Food | AA12: Nov | AB12: 11 | AC12: Clothing
A13: 6 | B13: 2016-01-03 | C13: 48.52 | D13: Utilities | F13: Expense Totals: | AA13: Dec | AB13: 12
A14: 7 | B14: 2016-01-10 | C14: 25 | D14: Clothing | F14: Rent | G14: 350 | AB14: 13
A15: 8 | B15: 2016-01-15 | C15: 55 | D15: Food | F15: Utilities | G15: 48.52 | AB15: 14
A16: 9 | B16: 2016-01-15 | C16: 38 | D16: Gas | F16: Food | G16: 221.5 | AB16: 15
A17: 10 | B17: 2016-01-22 | C17: 50 | D17: Food | F17: Insurance | AB17: 16
A18: 11 | B18: 2016-01-22 | C18: 45 | D18: Gas | F18: Phone | G18: 0 | AB18: 17
A19: 12 | B19: 2016-01-25 | C19: 60 | D19: Fun | F19: Gas | G19: 173.6 | AB19: 18
A20: 13 | B20: 2016-01-30 | C20: 30 | D20: Food | F20: Medical | AB20: 19
A21: 14 | B21: 2016-01-30 | C21: 35 | D21: Gas | F21: Other Bills | AB21: 20
F22: Fun | G22: 80 | AB22: 21
F23: Home Improvement | AB23: 22
F24: Clothing | G24: 25 | AB24: 23
AB25: 24
G26: =A1 -> Jan 2017 | AB26: 25
F27: Total Expense: | G27: =SUM(G14:G24) -> 898.62 | AB27: 26
F28: Surplus: | G28: =B5-G27 -> 1601.38 | AB28: 27
AB29: 28
AB30: 29
AB31: 30
AB32: 31

Sheet Template (hidden)
A1: Template
AA2: Jan | AB2: 1 | AC2: Rent
A3: Monthly Expected Income | B3: 0 | AA3: Feb | AB3: 2 | AC3: Utilities
A4: Additional Income | B4: 0 | AA4: Mar | AB4: 3 | AC4: Food
A5: Total Income | B5: 0 | AA5: Apr | AB5: 4 | AC5: Insurance
AA6: May | AB6: 5 | AC6: Phone
A7: Transaction Number | B7: Date | C7: Amount | D7: Category | AA7: Jun | AB7: 6 | AC7: Savings
AA8: Jul | AB8: 7 | AC8: Medical
AA9: Aug | AB9: 8 | AC9: Other bills
AA10: Sep | AB10: 9 | AC10: Fun
AA11: Oct | AB11: 10 | AC11: Home Improvement
AA12: Nov | AB12: 11 | AC12: Clothing
F13: Expense Totals: | AA13: Dec | AB13: 12
F14: Rent | AB14: 13
F15: Utilities | AB15: 14
F16: Food | AB16: 15
F17: Insurance | AB17: 16
F18: Phone | AB18: 17
F19: Gas | AB19: 18
F20: Medical | AB20: 19
F21: Other Bills | AB21: 20
F22: Fun | AB22: 21
F23: Home Improvement | AB23: 22
F24: Clothing | AB24: 23
AB25: 24
G26: =A1 -> Template | AB26: 25
F27: Total Expense: | G27: =SUM(G14:G24) -> 0 | AB27: 26
F28: Surplus: | G28: =B5-G27 -> 0 | AB28: 27
AB29: 28
AB30: 29
AB31: 30
AB32: 31
